[Event "Early-Titled-Tuesday-Blitz-January-23-2024"]
[Site "Chess.com"]
[Date "2024.01.23"]
[Round "5"]
[White "Njal28"]
[Black "Bauman_Guy"]
[Result "1-0"]
[WhiteElo "3052"]
[BlackElo "2886"]
[TimeControl "180+1"]
[EndTime "8:55:04 PST"]
[Termination "Njal28 won by resignation"]

1. d4 {[%clk 0:03:00.9]} 1... Nf6 {[%clk 0:02:59.5]} 2. c4 {[%clk 0:03:01.6]}
2... e6 {[%clk 0:02:59.3]} 3. Nc3 {[%clk 0:03:02.3]} 3... Bb4 {[%clk 0:02:59.2]}
4. e3 {[%clk 0:03:03]} 4... O-O {[%clk 0:02:59.2]} 5. a3 {[%clk 0:03:03.7]} 5...
Bxc3+ {[%clk 0:02:59]} 6. bxc3 {[%clk 0:03:04.6]} 6... b6 {[%clk 0:02:59.2]} 7.
Ne2 {[%clk 0:03:05.3]} 7... Ba6 {[%clk 0:02:55.5]} 8. Ng3 {[%clk 0:03:06.2]}
8... Nc6 {[%clk 0:02:54.4]} 9. e4 {[%clk 0:03:06.7]} 9... Ne8 {[%clk 0:02:54.9]}
10. Bd3 {[%clk 0:03:03.2]} 10... Na5 {[%clk 0:02:54.8]} 11. Qe2 {[%clk
0:03:03.1]} 11... c5 {[%clk 0:02:53.4]} 12. d5 {[%clk 0:03:01.8]} 12... Nb3
{[%clk 0:02:39.6]} 13. Rb1 {[%clk 0:03:01]} 13... Nxc1 {[%clk 0:02:39.1]} 14.
Rxc1 {[%clk 0:03:01.9]} 14... Qh4 {[%clk 0:02:31.5]} 15. O-O {[%clk 0:02:54.8]}
15... Nf6 {[%clk 0:02:29.7]} 16. e5 {[%clk 0:02:46.6]} 16... Ng4 {[%clk
0:02:25.2]} 17. h3 {[%clk 0:02:46.3]} 17... Nh6 {[%clk 0:02:25.2]} 18. Ne4
{[%clk 0:01:49.4]} 18... Nf5 {[%clk 0:02:14.1]} 19. f4 {[%clk 0:01:33.2]} 19...
d6 {[%clk 0:01:04.4]} 20. dxe6 {[%clk 0:01:29.8]} 20... fxe6 {[%clk 0:01:02.4]}
21. exd6 {[%clk 0:01:25]} 21... Rad8 {[%clk 0:01:00]} 22. Rcd1 {[%clk
0:01:20.9]} 22... Bc8 {[%clk 0:00:41.9]} 23. Bc2 {[%clk 0:01:02.8]} 23... h6
{[%clk 0:00:39.4]} 24. Rd2 {[%clk 0:00:33.3]} 24... Bb7 {[%clk 0:00:34.6]} 25.
Nxc5 {[%clk 0:00:12.9]} 25... bxc5 {[%clk 0:00:18.7]} 26. Qxe6+ {[%clk
0:00:13.6]} 26... Rf7 {[%clk 0:00:18.2]} 27. Bxf5 {[%clk 0:00:14.5]} 27... Bc8
{[%clk 0:00:18.5]} 28. d7 {[%clk 0:00:10.9]} 28... Bxd7 {[%clk 0:00:17.7]} 29.
Rxd7 {[%clk 0:00:11.3]} 29... Rxd7 {[%clk 0:00:14.7]} 30. Qe8+ {[%clk
0:00:11.9]} 30... Rf8 {[%clk 0:00:13.3]} 31. Be6+ {[%clk 0:00:10.8]} 31... Kh7
{[%clk 0:00:11.9]} 32. Qxf8 {[%clk 0:00:10.7]} 32... Rd8 {[%clk 0:00:12]} 33.
Bf5+ {[%clk 0:00:10.1]} 33... g6 {[%clk 0:00:12.2]} 34. Qf7+ {[%clk 0:00:10.6]}
34... Kh8 {[%clk 0:00:12.9]} 35. Qxg6 {[%clk 0:00:11.2]} 1-0

[Event "Early-Titled-Tuesday-Blitz-January-23-2024"]
[Site "Chess.com"]
[Date "2024.01.23"]
[Round "5"]
[White "luckyswitchback"]
[Black "guillembaches"]
[Result "1-0"]
[WhiteElo "2711"]
[BlackElo "2534"]
[TimeControl "180+1"]
[EndTime "8:55:04 PST"]
[Termination "luckyswitchback won by resignation"]

1. e4 {[%clk 0:03:00.9]} 1... d5 {[%clk 0:03:00.1]} 2. exd5 {[%clk 0:03:00.9]}
2... Qxd5 {[%clk 0:03:01]} 3. Nc3 {[%clk 0:03:01.4]} 3... Qa5 {[%clk 0:03:01.6]}
4. d4 {[%clk 0:03:01.7]} 4... Nf6 {[%clk 0:03:02.1]} 5. Nf3 {[%clk 0:03:01.2]}
5... Bf5 {[%clk 0:03:02.1]} 6. Bc4 {[%clk 0:03:00.8]} 6... e6 {[%clk 0:03:02.4]}
7. Bd2 {[%clk 0:02:51.2]} 7... Bb4 {[%clk 0:03:02.2]} 8. Qe2 {[%clk 0:02:46.9]}
8... O-O {[%clk 0:03:00.4]} 9. O-O {[%clk 0:02:42.8]} 9... Nc6 {[%clk
0:02:57.8]} 10. a3 {[%clk 0:02:37.3]} 10... Bxc3 {[%clk 0:02:57.6]} 11. Bxc3
{[%clk 0:02:38.2]} 11... Qb6 {[%clk 0:02:57.6]} 12. Ne5 {[%clk 0:02:00.1]} 12...
Nxd4 {[%clk 0:02:40]} 13. Bxd4 {[%clk 0:01:52.7]} 13... Qxd4 {[%clk 0:02:39.9]}
14. Rad1 {[%clk 0:01:47.2]} 14... Qxb2 {[%clk 0:02:37]} 15. Bb3 {[%clk
0:01:41.1]} 15... Qxa3 {[%clk 0:02:22.7]} 16. g4 {[%clk 0:01:40.7]} 16... Bg6
{[%clk 0:02:13.6]} 17. h4 {[%clk 0:01:38.1]} 17... h6 {[%clk 0:01:55.7]} 18.
Nxg6 {[%clk 0:01:32.9]} 18... fxg6 {[%clk 0:01:56]} 19. g5 {[%clk 0:01:25.4]}
19... hxg5 {[%clk 0:01:31.3]} 20. hxg5 {[%clk 0:01:26.3]} 20... Nh5 {[%clk
0:01:29.5]} 21. Rd3 {[%clk 0:00:49.6]} 21... Qc5 {[%clk 0:01:12.3]} 22. Rh3
{[%clk 0:00:45.4]} 22... Qxg5+ {[%clk 0:00:43.1]} 23. Kh1 {[%clk 0:00:45.4]}
23... Rf6 {[%clk 0:00:31.7]} 24. Bxe6+ {[%clk 0:00:34.3]} 24... Kh7 {[%clk
0:00:28.6]} 25. Rg1 {[%clk 0:00:34.3]} 25... Qf4 {[%clk 0:00:22.5]} 26. Bc4
{[%clk 0:00:25.8]} 26... Raf8 {[%clk 0:00:21.2]} 27. Bd3 {[%clk 0:00:20.6]}
27... Rf5 {[%clk 0:00:10.5]} 28. Rg4 {[%clk 0:00:15.6]} 28... Qxf2 {[%clk
0:00:09.3]} 29. Qxf2 {[%clk 0:00:14.5]} 29... Rxf2 {[%clk 0:00:09.6]} 30. Bxg6+
{[%clk 0:00:15.1]} 30... Kg8 {[%clk 0:00:10]} 31. Rxh5 {[%clk 0:00:15.3]} 31...
Rd2 {[%clk 0:00:10.1]} 32. Bh7+ {[%clk 0:00:15.1]} 32... Kh8 {[%clk 0:00:10.6]}
33. Bd3+ {[%clk 0:00:14.4]} 33... Kg8 {[%clk 0:00:11.1]} 34. Bc4+ {[%clk
0:00:14.9]} 1-0

[Event "Early-Titled-Tuesday-Blitz-January-23-2024"]
[Site "Chess.com"]
[Date "2024.01.23"]
[Round "5"]
[White "RaugintaBulba"]
[Black "AnaKuchava"]
[Result "0-1"]
[WhiteElo "2445"]
[BlackElo "2227"]
[TimeControl "180+1"]
[EndTime "8:55:06 PST"]
[Termination "AnaKuchava won on time"]

1. d4 {[%clk 0:02:46.7]} 1... d5 {[%clk 0:02:54.7]} 2. c4 {[%clk 0:02:47.1]}
2... e6 {[%clk 0:02:49.6]} 3. Nf3 {[%clk 0:02:47.6]} 3... Nf6 {[%clk 0:02:48.3]}
4. g3 {[%clk 0:02:48.1]} 4... Bb4+ {[%clk 0:02:45.1]} 5. Bd2 {[%clk 0:02:46.8]}
5... Be7 {[%clk 0:02:44.1]} 6. Bg2 {[%clk 0:02:45.5]} 6... O-O {[%clk
0:02:42.8]} 7. O-O {[%clk 0:02:45.3]} 7... c6 {[%clk 0:02:25.9]} 8. Qc2 {[%clk
0:02:45.5]} 8... b6 {[%clk 0:02:23.9]} 9. Rd1 {[%clk 0:02:45.7]} 9... Ba6 {[%clk
0:02:13.7]} 10. Ne5 {[%clk 0:02:12.6]} 10... Nfd7 {[%clk 0:01:41]} 11. cxd5
{[%clk 0:01:53.9]} 11... cxd5 {[%clk 0:01:39.5]} 12. e4 {[%clk 0:01:46.1]} 12...
Nxe5 {[%clk 0:01:39.1]} 13. dxe5 {[%clk 0:01:47]} 13... d4 {[%clk 0:01:39.5]}
14. Be3 {[%clk 0:01:26.3]} 14... d3 {[%clk 0:01:37.7]} 15. Qb3 {[%clk
0:01:08.6]} 15... Nd7 {[%clk 0:01:26]} 16. Qa4 {[%clk 0:00:54.3]} 16... Qc8
{[%clk 0:01:25.1]} 17. f4 {[%clk 0:00:38.1]} 17... Nc5 {[%clk 0:01:07.9]} 18.
Bxc5 {[%clk 0:00:31.5]} 18... Bxc5+ {[%clk 0:01:08.8]} 19. Kh1 {[%clk
0:00:31.1]} 19... Rd8 {[%clk 0:00:52.1]} 20. Nc3 {[%clk 0:00:30]} 20... Qb7
{[%clk 0:00:47.2]} 21. a3 {[%clk 0:00:15.7]} 21... Rac8 {[%clk 0:00:44]} 22. Qb3
{[%clk 0:00:03.3]} 22... Bd4 {[%clk 0:00:30.4]} 23. Rac1 {[%clk 0:00:03.8]}
23... Bc4 {[%clk 0:00:28.2]} 24. Qa4 {[%clk 0:00:02.4]} 24... b5 {[%clk
0:00:24.1]} 25. Qa5 {[%clk 0:00:02]} 25... Bb6 {[%clk 0:00:22.1]} 26. Qb4 {[%clk
0:00:01.4]} 26... a5 {[%clk 0:00:22]} 27. Qxb5 {[%clk 0:00:01.9]} 27... Bxb5
{[%clk 0:00:21.6]} 28. Nxb5 {[%clk 0:00:02.8]} 28... Rxc1 {[%clk 0:00:19.8]} 29.
Rxc1 {[%clk 0:00:03.7]} 29... d2 {[%clk 0:00:19.6]} 30. Rd1 {[%clk 0:00:04.2]}
30... Qc6 {[%clk 0:00:17.4]} 31. Nc3 {[%clk 0:00:02.9]} 31... Qc4 {[%clk
0:00:13.3]} 32. Bf1 {[%clk 0:00:02]} 32... Qb3 {[%clk 0:00:12.7]} 0-1

[Event "Early-Titled-Tuesday-Blitz-January-23-2024"]
[Site "Chess.com"]
[Date "2024.01.23"]
[Round "5"]
[White "baki83"]
[Black "Jumbo"]
[Result "0-1"]
[WhiteElo "2844"]
[BlackElo "2974"]
[TimeControl "180+1"]
[EndTime "8:55:07 PST"]
[Termination "Jumbo won on time"]

1. e4 {[%clk 0:03:00.9]} 1... c5 {[%clk 0:02:56.6]} 2. Nf3 {[%clk 0:03:00.8]}
2... d6 {[%clk 0:02:57]} 3. Bb5+ {[%clk 0:03:00.4]} 3... Bd7 {[%clk 0:02:55.9]}
4. Bxd7+ {[%clk 0:03:00.2]} 4... Nxd7 {[%clk 0:02:56.8]} 5. O-O {[%clk
0:03:00.5]} 5... Ngf6 {[%clk 0:02:57.1]} 6. Re1 {[%clk 0:03:01]} 6... e6 {[%clk
0:02:55.9]} 7. c3 {[%clk 0:02:53.6]} 7... Be7 {[%clk 0:02:56.2]} 8. d4 {[%clk
0:02:53.5]} 8... O-O {[%clk 0:02:56.4]} 9. Bf4 {[%clk 0:02:46.8]} 9... Qb6
{[%clk 0:02:52.7]} 10. Qe2 {[%clk 0:02:34]} 10... d5 {[%clk 0:02:23.9]} 11. exd5
{[%clk 0:02:31.6]} 11... Nxd5 {[%clk 0:02:23.6]} 12. Bg3 {[%clk 0:02:31.9]}
12... cxd4 {[%clk 0:02:20.4]} 13. Nxd4 {[%clk 0:02:31.7]} 13... N7f6 {[%clk
0:02:19.2]} 14. a4 {[%clk 0:02:17.6]} 14... a6 {[%clk 0:01:51.4]} 15. a5 {[%clk
0:02:12.4]} 15... Qd8 {[%clk 0:01:51.7]} 16. Nd2 {[%clk 0:02:12.1]} 16... Bc5
{[%clk 0:01:49.7]} 17. N4b3 {[%clk 0:02:04.2]} 17... Ba7 {[%clk 0:01:49.5]} 18.
Nc4 {[%clk 0:02:03.7]} 18... Qd7 {[%clk 0:01:39.5]} 19. Nbd2 {[%clk 0:01:38.7]}
19... Rfd8 {[%clk 0:01:30.8]} 20. Nf3 {[%clk 0:01:24.8]} 20... Qe7 {[%clk
0:01:30.7]} 21. Rad1 {[%clk 0:01:19.2]} 21... Bc5 {[%clk 0:01:18.6]} 22. Nfe5
{[%clk 0:01:18.1]} 22... h6 {[%clk 0:01:07.6]} 23. Qf3 {[%clk 0:01:17.2]} 23...
Nh7 {[%clk 0:01:01.8]} 24. h4 {[%clk 0:01:16.7]} 24... Nhf6 {[%clk 0:00:59.4]}
25. Rd2 {[%clk 0:01:02.5]} 25... Qe8 {[%clk 0:00:42.9]} 26. Red1 {[%clk
0:00:56.9]} 26... Be7 {[%clk 0:00:40.5]} 27. Nb6 {[%clk 0:00:42]} 27... Nxb6
{[%clk 0:00:38.9]} 28. axb6 {[%clk 0:00:42.4]} 28... Rxd2 {[%clk 0:00:37.3]} 29.
Rxd2 {[%clk 0:00:42.2]} 29... Qc8 {[%clk 0:00:36.8]} 30. b4 {[%clk 0:00:24.1]}
30... a5 {[%clk 0:00:32.8]} 31. bxa5 {[%clk 0:00:12.7]} 31... Rxa5 {[%clk
0:00:33.7]} 32. Rd1 {[%clk 0:00:11.6]} 32... Bd8 {[%clk 0:00:16.4]} 33. Rb1
{[%clk 0:00:05.2]} 33... Ra3 {[%clk 0:00:11.6]} 0-1

[Event "Early-Titled-Tuesday-Blitz-January-23-2024"]
[Site "Chess.com"]
[Date "2024.01.23"]
[Round "5"]
[White "ljuks68"]
[Black "Sadykov_Ramil"]
[Result "0-1"]
[WhiteElo "2472"]
[BlackElo "2610"]
[TimeControl "180+1"]
[EndTime "8:55:07 PST"]
[Termination "Sadykov_Ramil won by resignation"]

1. e4 {[%clk 0:03:00.9]} 1... c5 {[%clk 0:02:58.1]} 2. Nf3 {[%clk 0:03:00.8]}
2... Nc6 {[%clk 0:02:56.9]} 3. d4 {[%clk 0:03:00.8]} 3... cxd4 {[%clk
0:02:57.8]} 4. Nxd4 {[%clk 0:03:01.3]} 4... g6 {[%clk 0:02:58.6]} 5. c4 {[%clk
0:03:01.1]} 5... Nf6 {[%clk 0:02:58.1]} 6. Nc3 {[%clk 0:03:00.6]} 6... d6 {[%clk
0:02:58.8]} 7. Be2 {[%clk 0:03:00.1]} 7... Nxd4 {[%clk 0:02:58]} 8. Qxd4 {[%clk
0:02:59.7]} 8... Bg7 {[%clk 0:02:58.7]} 9. Be3 {[%clk 0:03:00.2]} 9... O-O
{[%clk 0:02:59.2]} 10. Qd2 {[%clk 0:03:00.7]} 10... a5 {[%clk 0:02:59.1]} 11. f3
{[%clk 0:03:00.3]} 11... a4 {[%clk 0:02:59.1]} 12. Rc1 {[%clk 0:03:00.6]} 12...
Qa5 {[%clk 0:02:56.4]} 13. Nd5 {[%clk 0:02:57]} 13... Qxd2+ {[%clk 0:02:39.8]}
14. Kxd2 {[%clk 0:02:57.1]} 14... Nxd5 {[%clk 0:02:35.5]} 15. cxd5 {[%clk
0:02:57.6]} 15... Bxb2 {[%clk 0:02:34.1]} 16. Rc7 {[%clk 0:02:57.6]} 16... e6
{[%clk 0:02:14.7]} 17. g4 {[%clk 0:02:48.4]} 17... exd5 {[%clk 0:01:58.9]} 18.
exd5 {[%clk 0:02:48.3]} 18... Ra5 {[%clk 0:01:56.9]} 19. Bc4 {[%clk 0:02:41.5]}
19... b5 {[%clk 0:01:56.9]} 20. Bd3 {[%clk 0:02:41.6]} 20... b4 {[%clk
0:01:54.3]} 21. Bc4 {[%clk 0:02:41.8]} 21... b3 {[%clk 0:01:09.6]} 22. axb3
{[%clk 0:02:40.5]} 22... a3 {[%clk 0:01:09.8]} 23. b4 {[%clk 0:02:40.7]} 23...
Ra4 {[%clk 0:01:07]} 24. Ba2 {[%clk 0:02:15.4]} 24... Rxb4 {[%clk 0:01:05.8]}
25. Bh6 {[%clk 0:02:14.2]} 25... Bg7 {[%clk 0:01:01.7]} 26. Bxg7 {[%clk
0:02:13.7]} 26... Kxg7 {[%clk 0:01:02.6]} 27. Rhc1 {[%clk 0:02:10.1]} 27... Ba6
{[%clk 0:00:47.8]} 28. R1c3 {[%clk 0:01:43.6]} 28... Rb2+ {[%clk 0:00:44.5]} 29.
Rc2 {[%clk 0:01:41.9]} 29... Rfb8 {[%clk 0:00:40.6]} 30. Rxb2 {[%clk 0:01:40.1]}
30... axb2 {[%clk 0:00:31.5]} 31. Kc2 {[%clk 0:01:25.4]} 31... Be2 {[%clk
0:00:22.5]} 32. Rc3 {[%clk 0:01:25.1]} 32... g5 {[%clk 0:00:19.9]} 33. Bb3
{[%clk 0:01:16.2]} 33... Kf6 {[%clk 0:00:16.6]} 34. Ba2 {[%clk 0:00:39]} 34...
Rb5 {[%clk 0:00:10.6]} 35. Re3 {[%clk 0:00:36]} 35... Bc4 {[%clk 0:00:07.3]} 36.
Bb1 {[%clk 0:00:33.8]} 36... Bxd5 {[%clk 0:00:07.5]} 37. Kc3 {[%clk 0:00:32.2]}
37... Be6 {[%clk 0:00:05.4]} 38. Kd4 {[%clk 0:00:31.8]} 38... Rb4+ {[%clk
0:00:05.6]} 39. Kc3 {[%clk 0:00:30.3]} 39... Rb3+ {[%clk 0:00:06.1]} 40. Kd2
{[%clk 0:00:30.6]} 40... Rxe3 {[%clk 0:00:07]} 41. Kxe3 {[%clk 0:00:31.2]} 41...
Ke5 {[%clk 0:00:07.8]} 0-1

[Event "Early-Titled-Tuesday-Blitz-January-23-2024"]
[Site "Chess.com"]
[Date "2024.01.23"]
[Round "5"]
[White "stollenmonster"]
[Black "MKlose11"]
[Result "0-1"]
[WhiteElo "2893"]
[BlackElo "2654"]
[TimeControl "180+1"]
[EndTime "8:55:08 PST"]
[Termination "MKlose11 won on time"]

1. e4 {[%clk 0:03:00.9]} 1... e6 {[%clk 0:02:57.9]} 2. Nc3 {[%clk 0:02:59.8]}
2... d5 {[%clk 0:02:58.8]} 3. g3 {[%clk 0:03:00.4]} 3... d4 {[%clk 0:02:56.6]}
4. Nce2 {[%clk 0:02:59.7]} 4... c5 {[%clk 0:02:57.5]} 5. d3 {[%clk 0:02:59.9]}
5... Nc6 {[%clk 0:02:57.8]} 6. h3 {[%clk 0:03:00.2]} 6... Bd6 {[%clk 0:02:49.1]}
7. Bg2 {[%clk 0:03:00.6]} 7... e5 {[%clk 0:02:49.5]} 8. f4 {[%clk 0:03:00.6]}
8... Be6 {[%clk 0:02:45.2]} 9. Nf3 {[%clk 0:03:00.8]} 9... f6 {[%clk 0:02:40.4]}
10. O-O {[%clk 0:03:00.7]} 10... Nge7 {[%clk 0:02:38.9]} 11. g4 {[%clk 0:03:00]}
11... Qc7 {[%clk 0:02:32.7]} 12. Nh4 {[%clk 0:02:58.5]} 12... h6 {[%clk
0:02:28]} 13. Nf5 {[%clk 0:02:52.8]} 13... Nxf5 {[%clk 0:02:20]} 14. exf5 {[%clk
0:02:53.7]} 14... Bf7 {[%clk 0:02:18.5]} 15. fxe5 {[%clk 0:02:49.7]} 15... Bxe5
{[%clk 0:02:12.1]} 16. Bf4 {[%clk 0:02:47.4]} 16... O-O {[%clk 0:02:08.1]} 17.
Qd2 {[%clk 0:02:43.8]} 17... Rfe8 {[%clk 0:02:05.2]} 18. Ng3 {[%clk 0:02:27.2]}
18... Rad8 {[%clk 0:01:49.7]} 19. Ne4 {[%clk 0:02:25.7]} 19... b6 {[%clk
0:01:49]} 20. Rae1 {[%clk 0:02:20.9]} 20... Bxf4 {[%clk 0:01:46.6]} 21. Rxf4
{[%clk 0:02:20.7]} 21... Nb4 {[%clk 0:01:46.4]} 22. Rf3 {[%clk 0:01:48.8]} 22...
Nd5 {[%clk 0:01:38.1]} 23. h4 {[%clk 0:01:47]} 23... Ne3 {[%clk 0:01:37]} 24. g5
{[%clk 0:01:38.6]} 24... hxg5 {[%clk 0:01:36.7]} 25. hxg5 {[%clk 0:01:38.5]}
25... fxg5 {[%clk 0:01:37]} 26. Nxg5 {[%clk 0:01:29.2]} 26... Bd5 {[%clk
0:01:36.2]} 27. Qf2 {[%clk 0:00:45.6]} 27... Nxg2 {[%clk 0:01:27.1]} 28. Re6
{[%clk 0:00:43.2]} 28... Bxe6 {[%clk 0:01:14.7]} 29. fxe6 {[%clk 0:00:39.4]}
29... Qe5 {[%clk 0:00:29.2]} 30. Qxg2 {[%clk 0:00:19.4]} 30... Qe1+ {[%clk
0:00:23.3]} 31. Kh2 {[%clk 0:00:12.6]} 31... Qe5+ {[%clk 0:00:22.8]} 32. Kg1
{[%clk 0:00:12.2]} 32... Qe1+ {[%clk 0:00:18.6]} 33. Kh2 {[%clk 0:00:12.3]}
33... Rd5 {[%clk 0:00:18.3]} 34. Rg3 {[%clk 0:00:02.9]} 34... Qe5 {[%clk
0:00:15.4]} 35. Kg1 {[%clk 0:00:02.9]} 35... Qf4 {[%clk 0:00:14]} 0-1

[Event "Early-Titled-Tuesday-Blitz-January-23-2024"]
[Site "Chess.com"]
[Date "2024.01.23"]
[Round "5"]
[White "knightinshiningarmour16"]
[Black "Licancabur"]
[Result "1-0"]
[WhiteElo "2228"]
[BlackElo "2468"]
[TimeControl "180+1"]
[EndTime "8:55:09 PST"]
[Termination "knightinshiningarmour16 won on time"]

1. e4 {[%clk 0:03:00]} 1... Nf6 {[%clk 0:02:57.6]} 2. f3 {[%clk 0:02:57.1]} 2...
e5 {[%clk 0:02:50.5]} 3. d4 {[%clk 0:02:50.7]} 3... Nxe4 {[%clk 0:02:34.5]} 4.
fxe4 {[%clk 0:02:33.2]} 4... Qh4+ {[%clk 0:02:34.3]} 5. Ke2 {[%clk 0:02:22.5]}
5... Qxe4+ {[%clk 0:02:28.6]} 6. Be3 {[%clk 0:02:21.5]} 6... Nc6 {[%clk
0:02:04.7]} 7. dxe5 {[%clk 0:01:52.1]} 7... d5 {[%clk 0:01:45.7]} 8. Kf2 {[%clk
0:00:54.3]} 8... Nxe5 {[%clk 0:01:32.2]} 9. h3 {[%clk 0:00:32.4]} 9... Be7
{[%clk 0:01:22]} 10. Nc3 {[%clk 0:00:25]} 10... Bh4+ {[%clk 0:01:10.3]} 11. g3
{[%clk 0:00:12.5]} 11... Bxg3+ {[%clk 0:00:42.7]} 12. Kxg3 {[%clk 0:00:12.5]}
12... Qxe3+ {[%clk 0:00:43.1]} 13. Nf3 {[%clk 0:00:12.8]} 13... Be6 {[%clk
0:00:18.6]} 14. Bg2 {[%clk 0:00:09.3]} 14... O-O-O {[%clk 0:00:16.5]} 15. Re1
{[%clk 0:00:06.5]} 15... Qh6 {[%clk 0:00:09.9]} 16. Rxe5 {[%clk 0:00:05.9]}
16... Rhe8 {[%clk 0:00:07.2]} 17. Qd2 {[%clk 0:00:04.2]} 17... Qf6 {[%clk
0:00:07.1]} 18. Re2 {[%clk 0:00:03.6]} 18... d4 {[%clk 0:00:06.3]} 19. Kh2
{[%clk 0:00:04.3]} 19... dxc3 {[%clk 0:00:05.8]} 20. Qxc3 {[%clk 0:00:04.9]}
20... Qxc3 {[%clk 0:00:05.4]} 21. bxc3 {[%clk 0:00:05.6]} 21... Bf5 {[%clk
0:00:04.3]} 22. Rae1 {[%clk 0:00:06.5]} 22... Rxe2 {[%clk 0:00:02.5]} 23. Rxe2
{[%clk 0:00:06.5]} 23... f6 {[%clk 0:00:03.3]} 24. Nd4 {[%clk 0:00:06.5]} 24...
Bd7 {[%clk 0:00:02.9]} 25. Bf3 {[%clk 0:00:06.4]} 25... Re8 {[%clk 0:00:02.2]}
26. Rxe8+ {[%clk 0:00:05.4]} 26... Bxe8 {[%clk 0:00:02.4]} 27. Bg4+ {[%clk
0:00:06.1]} 1-0

[Event "Early-Titled-Tuesday-Blitz-January-23-2024"]
[Site "Chess.com"]
[Date "2024.01.23"]
[Round "5"]
[White "Byniolus"]
[Black "wonderfultime"]
[Result "0-1"]
[WhiteElo "2859"]
[BlackElo "3044"]
[TimeControl "180+1"]
[EndTime "8:55:10 PST"]
[Termination "wonderfultime won on time"]

1. d4 {[%clk 0:03:00.9]} 1... d5 {[%clk 0:02:56.4]} 2. Nf3 {[%clk 0:03:00.9]}
2... Nf6 {[%clk 0:02:55.4]} 3. Bf4 {[%clk 0:03:01.3]} 3... c5 {[%clk 0:02:55.3]}
4. c3 {[%clk 0:03:01.9]} 4... Qb6 {[%clk 0:02:55.4]} 5. Qb3 {[%clk 0:03:01.8]}
5... Nc6 {[%clk 0:02:55.9]} 6. Nbd2 {[%clk 0:03:01.1]} 6... cxd4 {[%clk
0:02:54.7]} 7. Qxb6 {[%clk 0:02:58.3]} 7... axb6 {[%clk 0:02:55.6]} 8. Nxd4
{[%clk 0:02:56]} 8... e5 {[%clk 0:02:44.6]} 9. Nxc6 {[%clk 0:02:55.7]} 9... exf4
{[%clk 0:02:44.8]} 10. Nd4 {[%clk 0:02:56.5]} 10... Bd7 {[%clk 0:02:37.3]} 11.
g3 {[%clk 0:02:53.6]} 11... Bd6 {[%clk 0:02:37.9]} 12. Bg2 {[%clk 0:02:45.7]}
12... h5 {[%clk 0:02:37.7]} 13. gxf4 {[%clk 0:02:38.5]} 13... Bxf4 {[%clk
0:02:36.4]} 14. e3 {[%clk 0:02:38.8]} 14... Be5 {[%clk 0:02:26.6]} 15. a3 {[%clk
0:02:34.1]} 15... O-O {[%clk 0:02:19]} 16. N2f3 {[%clk 0:02:09.9]} 16... Bd6
{[%clk 0:02:10.9]} 17. Ng5 {[%clk 0:02:08.6]} 17... Rfe8 {[%clk 0:02:08.2]} 18.
Kd2 {[%clk 0:02:01.8]} 18... Rad8 {[%clk 0:01:57.1]} 19. h3 {[%clk 0:01:51.4]}
19... g6 {[%clk 0:01:53.7]} 20. Rad1 {[%clk 0:01:37]} 20... Bf8 {[%clk
0:01:53.7]} 21. f4 {[%clk 0:01:13.4]} 21... Re7 {[%clk 0:01:24]} 22. Rde1 {[%clk
0:01:12.2]} 22... Rde8 {[%clk 0:01:23.5]} 23. Rhf1 {[%clk 0:01:11]} 23... Bh6
{[%clk 0:01:19.9]} 24. Re2 {[%clk 0:00:50.1]} 24... Kg7 {[%clk 0:01:12.6]} 25.
Ree1 {[%clk 0:00:50]} 25... Bc6 {[%clk 0:01:03]} 26. b4 {[%clk 0:00:29.1]} 26...
Bd7 {[%clk 0:00:54.3]} 27. Re2 {[%clk 0:00:25.3]} 27... Ra8 {[%clk 0:00:53.3]}
28. Ra1 {[%clk 0:00:23.8]} 28... Be8 {[%clk 0:00:50.9]} 29. Ree1 {[%clk
0:00:20.9]} 29... Rd8 {[%clk 0:00:48.4]} 30. Kc2 {[%clk 0:00:18.9]} 30... Rc7
{[%clk 0:00:44]} 31. Kb2 {[%clk 0:00:16.7]} 31... Bd7 {[%clk 0:00:39.1]} 32.
Rad1 {[%clk 0:00:12.6]} 32... Re8 {[%clk 0:00:36.1]} 33. Rd2 {[%clk 0:00:11.1]}
33... Bxg5 {[%clk 0:00:31]} 34. fxg5 {[%clk 0:00:11.1]} 34... Ne4 {[%clk
0:00:31.9]} 35. Bxe4 {[%clk 0:00:10.7]} 35... Rxe4 {[%clk 0:00:32.8]} 36. Rh2
{[%clk 0:00:01.8]} 36... h4 {[%clk 0:00:33.4]} 37. Rg1 {[%clk 0:00:01.7]} 37...
Rxe3 {[%clk 0:00:32.8]} 38. Rc1 {[%clk 0:00:01.4]} 38... Bxh3 {[%clk 0:00:31.5]}
39. Nb5 {[%clk 0:00:01.7]} 39... Rc4 {[%clk 0:00:28.6]} 40. Rch1 {[%clk
0:00:02]} 40... Bd7 {[%clk 0:00:28.8]} 0-1